[Event "Turkish-ch Youth U18 Boys 2024"]
[Site "Belek Antalya"]
[Date "2024.01.22"]
[Round "2"]
[White "Erdogan, Tekin Alp"]
[Black "Malgac, Omer Beyazit"]
[Result "1-0"]
[ECO "D00"]
[WhiteElo "1992"]
[BlackElo "1595"]
[Annotator "TA"]
[PlyCount "133"]
[EventDate "2024.01.21"]
[EventType "swiss"]
[EventCountry "TUR"]
[SourceTitle "playchess.com"]
[Source "ChessBase"]
[SourceQuality "1"]
[TimeControl "5400+30"]

{[%evp 9,133,0,7,2,3,0,0,0,0,9,-2,2,1,-11,0,-21,-4,-20,15,8,29,0,48,16,12,5,18,-4,9,-14,0,-10,0,6,0,-23,0,-22,-12,0,28,-71,0,0,22,19,8,15,54,47,41,22,25,12,24,20,25,33,30,28,48,0,0,0,0,0,0,0,0,0,0,0,0,0,-3,-33,-8,0,0,-15,-17,-11,0,0,0,0,0,0,0,-8,-8,-8,-8,-8,-8,-8,-8,-8,8,8,8,8,8,8,8,8,55,48,1463,652,1278,738,673,589,29986,29987,29988,29989,29990,29991,29992,29993,29993,29994,29994,29994]} 1. d4 {[%emt 0:01:00]} Nf6 {[%emt 0:01:00]} 2. Nf3 {[%emt 0:00:00]} g6 {[%emt 0:00:30]} 3. Nc3 {[%emt 0:00:00]} d5 {[%emt 0:00:30]} 4. Bf4 {[%emt 0:00:00][%cal Bc1f4,Bf4e5,Be5g3][%mdl 32]} Nh5 {[%emt 0:00:00]} 5. Be5 {[%emt 0:01:00]} f6 {[%emt 0:00:00]} 6. Bg3 {[%emt 0:00:30] D00: 1 d4 d5: Unusual lines.} Bh6 {[%emt 0:00:00]} 7. e4 {[%emt 0:04:30] [#]} c6 $146 {[%emt 0:06:00]} ({Predecessor:} 7... e6 8. e5 c5 9. exf6 cxd4 10. f7+ Kxf7 11. Nxd4 Nxg3 12. hxg3 Bg7 13. Qd2 Nc6 {½-½ Bondarenko,V (2315)-Kritz,L Moscow op2 1995 (3)}) 8. Be2 {[%emt 0:04:30] The position is equal.} O-O {[%emt 0:01:30]} 9. Nd2 {[%emt 0:02:30]} Nf4 {[%emt 0:02:30]} 10. Bxf4 {[%emt 0:03:30]} Bxf4 {[%emt 0:00:30]} 11. exd5 {[%emt 0:01:30]} cxd5 {[%emt 0:00:30]} 12. Bf3 {[%emt 0:00:30]} e6 {[%emt 0:03:30]} 13. O-O {[%emt 0:04:30]} (13. Ne2 $5 {[%cal Re2f4]} Bh6 14. c4 $11) 13... Nd7 {[%emt 0:05:30]} 14. g3 {[%emt 0:10:30]} Bb8 {[%emt 0:04:30]} 15. Nb3 {[%emt 0:01:30]} a6 {[%emt 0:04:30]} (15... f5 $11 {should be considered.}) 16. a4 {[%emt 0:04:30]} f5 {[%emt 0:08:30]} 17. Bg2 {[%emt 0:06:30]} Nf6 {[%emt 0:03:30]} 18. Qe2 {[%emt 0:01:30]} b6 {[%emt 0:01:30]} 19. Nd2 {[%emt 0:05:30]} g5 {[%emt 0:05:30]} 20. Nc4 {[%emt 0:02:30]} Ra7 {[%emt 0:03:30]} 21. Ne5 {[%emt 0:01:30]} Bxe5 {[%emt 0:02:30]} 22. Qxe5 {[%emt 0:02:30]} Rg7 {[%emt 0:02:30]} 23. f3 {[%emt 0:06:30]} h5 {[%emt 0:04:30]} 24. Ne2 {[%emt 0:01:30]} h4 {[%emt 0:03:30]} 25. Kf2 {[%emt 0:05:30]} (25. gxh4 $1 $11 {keeps the balance.} Nh5 26. Kh1) 25... hxg3+ {[%emt 0:10:30]} (25... Ne8 $17) 26. hxg3 $11 {[%emt 0:00:30]} Re8 {[%emt 0:01:30][%cal Bf8e8,Be8e7,Be7c7][%mdl 32]} 27. Rh1 {[%emt 0:02:30]} Nd7 {[%emt 0:00:30]} 28. Qd6 {[%emt 0:01:30]} Qe7 {[%emt 0:02:30]} 29. Qxe7 {[%emt 0:00:30]} (29. Qc6 {is interesting.} Nf6 30. Qxb6 e5 31. Rh6) 29... Rexe7 {[%emt 0:00:30]} 30. Ra3 {[%emt 0:02:30]} Nf6 {[%emt 0:00:30]} 31. Rb3 {[%emt 0:00:30]} Rc7 {[%emt 0:00:30]} 32. c3 {[%emt 0:01:30]} Rc6 {[%emt 0:00:30]} 33. Nc1 {[%emt 0:01:30][%cal Be2c1,Bc1d3,Bd3f4][%mdl 32]} a5 {[%emt 0:01:30]} 34. Nd3 {[%emt 0:01:30]} Nd7 {[%emt 0:00:30]} 35. Re1 {[%emt 0:01:56]} (35. Bf1 $1 $14) 35... Ba6 {[%emt 0:01:30]} 36. Bf1 {[%emt 0:02:37][%cal Od3b4]} Bc4 $36 {[%emt 0:01:36][%mdl 2048] White is under pressure.} 37. Ra3 {[%emt 0:00:07]} g4 {[%emt 0:00:46]} 38. Nf4 {[%emt 0:04:17]} Bxf1 {[%emt 0:00:27]} 39. Rxf1 {[%emt 0:00:46]} gxf3 {[%emt 0:00:26]} 40. Kxf3 {[%emt 0:01:11]} Nf6 {[%emt 0:00:15]} 41. Rh1 {[%emt 0:01:09]} Ne4 {[%emt 0:00:44]} 42. Ne2 {[%emt 0:00:07]} Rcc7 {[%emt 0:03:57]} 43. Rh4 {[%emt 0:01:09]} Rh7 {[%emt 0:01:49]} 44. Rxh7 {[%emt 0:00:38]} Rxh7 {[%emt 0:01:55][%mdl 4096] Endgame KRN-KRN} 45. Kg2 $1 {[%emt 0:00:03] Prevents Rh1.} Nd6 {[%emt 0:02:03]} 46. Nf4 {[%emt 0:01:30]} Kf7 {[%emt 0:01:20]} 47. Rb3 {[%emt 0:00:30]} Nc8 {[%emt 0:00:01]} 48. Rb5 {[%emt 0:01:56][%cal Oc3c4]} Ke7 {[%emt 0:00:25]} 49. c4 {[%emt 0:01:21]} dxc4 {[%emt 0:04:35]} 50. Re5 {[%emt 0:00:30]} Rh6 {[%emt 0:00:00]} 51. d5 {[%emt 0:02:23][%cal Rd5e6]} Kd6 {[%emt 0:00:28]} 52. Rxe6+ {[%emt 0:00:30]} Rxe6 {[%emt 0:00:30]} 53. dxe6 {[%emt 0:00:10] KN-KN} Kc5 {[%emt 0:01:35]} 54. Kf3 {[%emt 0:00:49]} Ne7 {[%emt 0:01:57]} 55. Ke3 {[%emt 0:01:49]} c3 {[%emt 0:01:15]} 56. bxc3 {[%emt 0:00:42]} Kc4 {[%emt 0:00:00]} 57. Ne2 {[%emt 0:01:19]} Nd5+ {[%emt 0:01:18]} (57... b5 $11 {deserves consideration.}) 58. Kd2 $1 $14 {[%emt 0:00:30]} Kb3 $2 {[%emt 0:00:30][%mdl 8192] [#] This costs Black the game.} (58... Ne7 $14) 59. Nd4+ $18 {[%emt 0:00:30]} Kxa4 {[%emt 0:00:30]} 60. Nxf5 {[%emt 0:00:30]} Kb3 {[%emt 0:00:00]} 61. e7 {[%emt 0:03:01]} Nf6 {[%emt 0:00:47] [#]} 62. g4 $1 {[%emt 0:00:14][%mdl 512] White mates.} a4 {[%emt 0:04:33]} (62... b5 63. Nd6) 63. g5 {[%emt 0:00:30]} Ne8 {[%emt 0:00:00]} 64. g6 {[%emt 0:00:00]} Kb2 {[%emt 0:01:11]} 65. g7 {[%emt 0:00:10]} a3 {[%emt 0:00:14]} 66. g8=Q {[%emt 0:00:30]} a2 {[%emt 0:00:30]} 67. Qxe8 {[%emt 0:00:00] Weighted Error Value: White=0.09 (flawless) /Black=0.11 (very precise)} 1-0

[Event "Turkish-ch Youth U18 Boys 2024"]
[Site "Belek Antalya"]
[Date "2024.01.22"]
[Round "2"]
[White "Ozcan, Alp Orcun"]
[Black "Sahbaz, Bartu"]
[Result "1-0"]
[ECO "B01"]
[WhiteElo "1657"]
[BlackElo "1418"]
[Annotator "NA RC COMBH"]
[PlyCount "109"]
[EventDate "2024.01.21"]
[EventType "swiss"]
[EventCountry "TUR"]
[SourceTitle "playchess.com"]
[Source "ChessBase"]
[SourceQuality "1"]
[TimeControl "5400+30"]

1. e4 {[%emt 0:03:00]} d5 {[%emt 0:01:00]} 2. exd5 {[%emt 0:00:30]} Qxd5 {[%emt 0:00:30]} 3. Nc3 {[%emt 0:00:30]} Qd8 {[%emt 0:00:30]} 4. d4 {[%emt 0:00:00]} Bf5 {[%emt 0:00:00]} 5. Nf3 {[%emt 0:06:00]} Nf6 {[%emt 0:01:00]} 6. Bc4 {[%emt 0:03:30]} e6 {[%emt 0:00:30]} 7. O-O {[%emt 0:00:30]} c6 {[%emt 0:00:30]} 8. Re1 {[%emt 0:02:30]} Be7 {[%emt 0:01:30]} 9. h3 {[%emt 0:04:30]} Nbd7 {[%emt 0:04:30]} 10. Bb3 {[%emt 0:04:30]} O-O {[%emt 0:04:30]} 11. Qe2 {[%emt 0:02:30]} Re8 {[%emt 0:00:30]} 12. Ne5 {[%emt 0:03:30]} Nd5 {[%emt 0:05:30]} 13. Ne4 {[%emt 0:06:30]} f6 {[%emt 0:12:30]} 14. Nd3 {[%emt 0:04:30]} Kh8 {[%emt 0:01:30]} 15. c4 {[%emt 0:01:30]} Nc7 {[%emt 0:01:30]} 16. g4 {[%emt 0:01:30]} Bg6 {[%emt 0:01:30]} 17. Nf4 {[%emt 0:10:30]} Nf8 {[%emt 0:11:30]} 18. Nxg6+ {[%emt 0:02:30]} Nxg6 {[%emt 0:00:30]} 19. Rd1 {[%emt 0:00:30]} f5 {[%emt 0:08:30]} 20. Ng3 {[%emt 0:00:30]} Bd6 {[%emt 0:10:30]} 21. Bc2 {[%emt 0:06:30]} Qh4 {[%emt 0:01:30]} 22. Kg2 {[%emt 0:00:00]} Bf4 {[%emt 0:10:30]} 23. Qf3 {[%emt 0:02:00]} Bxc1 {[%emt 0:02:19]} 24. Raxc1 {[%emt 0:00:00]} Rf8 {[%emt 0:05:14]} 25. Rh1 {[%emt 0:04:00]} Qg5 {[%emt 0:01:31]} 26. Qe3 {[%emt 0:03:30]} f4 {[%emt 0:07:16]} 27. Ne4 {[%emt 0:00:30]} Nh4+ {[%emt 0:02:04]} 28. Kh2 {[%emt 0:00:30]} fxe3 {[%emt 0:01:34]} 29. Nxg5 {[%emt 0:00:30]} Rxf2+ {[%emt 0:01:23]} 30. Kg3 {[%emt 0:00:00]} Ng6 {[%emt 0:01:41]} 31. Ne4 {[%emt 0:02:00]} Rf7 {[%emt 0:01:32]} 32. Rhe1 {[%emt 0:00:30]} Rd7 {[%emt 0:00:14]} 33. Rcd1 {[%emt 0:03:30]} Rad8 {[%emt 0:00:01]} 34. Ng5 {[%emt 0:00:30]} Kg8 {[%emt 0:01:08]} 35. Rxe3 {[%emt 0:04:30]} Nf8 {[%emt 0:00:35]} 36. Red3 {[%emt 0:03:36]} Ng6 {[%emt 0:00:33]} 37. h4 {[%emt 0:00:10]} h6 {[%emt 0:00:34]} 38. Ne4 {[%emt 0:01:17]} Rf7 {[%emt 0:00:34]} 39. Re3 {[%emt 0:00:54]} e5 {[%emt 0:00:31]} 40. h5 {[%emt 0:01:36]} Nf4 {[%emt 0:00:30]} 41. dxe5 {[%emt 0:00:12]} Rdf8 {[%emt 0:00:20]} 42. Nd6 {[%emt 0:00:37]} Rd7 {[%emt 0:00:44]} 43. Bf5 {[%emt 0:00:59]} Nfe6 {[%emt 0:00:02]} 44. Ra3 {[%emt 0:02:05]} a6 {[%emt 0:00:35]} 45. Rb3 {[%emt 0:00:07]} b5 {[%emt 0:00:30]} 46. cxb5 {[%emt 0:00:30]} axb5 {[%emt 0:00:30]} 47. Rc3 {[%emt 0:00:30]} c5 {[%emt 0:00:00]} 48. Rdc1 {[%emt 0:00:00]} Re7 {[%emt 0:00:57]} 49. Kh2 {[%emt 0:00:47]} c4 {[%emt 0:00:52]} 50. Rf1 {[%emt 0:02:08]} Ng5 {[%emt 0:00:45]} 51. Re3 {[%emt 0:01:44]} Nd5 {[%emt 0:00:05]} 52. Re2 {[%emt 0:00:18]} Rd8 {[%emt 0:00:40]} 53. Nxb5 {[%emt 0:00:40]} Nf7 {[%emt 0:00:36]} 54. Nd4 {[%emt 0:01:33]} Kh8 {[%emt 0:00:45]} 55. Nc6 {[%emt 0:00:13]} 1-0

[Event "Turkish-ch Youth U18 Boys 2024"]
[Site "Belek Antalya"]
[Date "2024.01.22"]
[Round "2"]
[White "Giray, Arda"]
[Black "Anacak, Hasan Gunes"]
[Result "1/2-1/2"]
[ECO "B72"]
[WhiteElo "1323"]
[BlackElo "2102"]
[Annotator "TA"]
[PlyCount "166"]
[EventDate "2024.01.21"]
[EventType "swiss"]
[EventCountry "TUR"]
[SourceTitle "playchess.com"]
[Source "ChessBase"]
[SourceQuality "1"]
[TimeControl "5400+30"]

{[%evp 19,166,17,20,25,27,0,0,-14,-8,-32,-7,-10,0,0,0,0,48,44,56,0,36,39,52,43,56,52,214,202,346,216,258,256,327,317,295,164,164,164,164,165,162,148,172,164,222,222,225,225,227,220,213,121,132,121,132,126,227,133,320,310,345,356,323,285,309,309,446,420,750,689,1129,1098,1076,1052,920,25,33,33,33,33,109,93,93,93,1160,1153,1145,1135,720,16,33,23,45,80,175,16,16,16,16,16,16,16,16,16,16,16,16,16,16,16,16,16,16,16,16,16,16,0,16,16,16,16,16,16,16,16,16,16,16,0,16,16,16,16,16,16,16,16,16,0,16,16,16,16,16,16,16,16,16]} 1. e4 {[%emt 0:01:00]} c5 {[%emt 0:01:00]} 2. Nf3 {[%emt 0:00:00]} Nc6 {[%emt 0:06:30]} 3. d4 {[%emt 0:00:00]} cxd4 {[%emt 0:00:30]} 4. Nxd4 {[%emt 0:00:30]} g6 {[%emt 0:00:00]} 5. Nc3 {[%emt 0:01:30]} Bg7 {[%emt 0:00:00]} 6. Be3 {[%emt 0:00:30]} Nf6 {[%emt 0:00:30]} 7. Bc4 {[%emt 0:01:30]} O-O {[%emt 0:00:00]} 8. O-O {[%emt 0:00:30]} d6 {[%emt 0:11:00]} 9. h3 {[%emt 0:01:30]} Bd7 {[%emt 0:04:30]} 10. Bb3 {[%emt 0:02:30]} a6 {[%emt 0:11:30]} 11. Qd2 {[%emt 0:25:30] B72: Sicilian Dragon: 6 Be3, lines with h3+Bc4 and sidelines.} b5 {[%emt 0:07:30]} 12. f3 {[%emt 0:13:30]} Na5 {[%emt 0:04:30]} 13. Nd5 {[%emt 0:04:30] [#]} Nxd5 $146 {[%emt 0:08:30]} ({Predecessor:} 13... Rc8 14. c3 Rb8 15. Rab1 Qc8 16. Kh2 Nxd5 17. Bxd5 Qc7 18. Bh6 Bh8 19. g3 Nc4 20. Bxc4 Qxc4 {0-1 Rusjan,D (2060)-Milenkovic,M (2379) Nova Gorica op-A 19th 2014 (2)}) 14. exd5 {[%emt 0:02:30]} Rc8 {[%emt 0:02:30]} 15. c3 {[%emt 0:09:30]} Nc4 {[%emt 0:00:30]} 16. Bxc4 {[%emt 0:00:00]} Rxc4 {[%emt 0:01:30]} 17. a3 {[%emt 0:17:49]} e5 {[%emt 0:10:30]} (17... a5 $11 {might be stronger.}) 18. dxe6 $14 {[%emt 0:01:17]} fxe6 {[%emt 0:00:30]} 19. f4 {[%emt 0:02:17]} (19. Nc2 $14) 19... Qc7 {[%emt 0:03:30]} 20. Rad1 {[%emt 0:00:56]} Bc8 {[%emt 0:06:51]} 21. Nf3 {[%emt 0:01:01]} Rd8 {[%emt 0:00:09]} 22. Bd4 {[%emt 0:03:17]} e5 $2 {[%emt 0:10:03] [#]} (22... Bb7 $14) 23. Bxe5 $1 $18 {[%emt 0:01:27][%mdl 576] Pin} Bb7 {[%emt 0:03:42]} (23... Qa7+ $142 24. Kh2 Qb7) (23... h6 24. Qd5+) 24. Bxg7 {[%emt 0:01:19]} ({Less strong is} 24. Bxd6 Qb6+ 25. Kh1 Bf8 $14) 24... Qxg7 {[%emt 0:00:39]} 25. Nd4 {[%emt 0:00:20] Ne6 would be deadly.} Re8 {[%emt 0:03:13] Prevents Ne6.} 26. f5 {[%emt 0:00:55]} Be4 {[%emt 0:01:34]} 27. Qg5 {[%emt 0:02:40]} (27. Rde1 $142) 27... gxf5 {[%emt 0:00:31]} 28. Qxg7+ {[%emt 0:00:55]} Kxg7 {[%emt 0:00:30]} 29. Nxf5+ {[%emt 0:00:30]} Bxf5 {[%emt 0:00:30]} 30. Rxf5 {[%emt 0:00:30][%mdl 4096] Endgame KRR-KRR} Re2 {[%emt 0:00:30]} 31. Rf2 {[%emt 0:00:30]} Rxf2 {[%emt 0:00:30]} (31... Re6 $142 32. Rd3 Rc7 33. Rg3+ Rg6) 32. Kxf2 {[%emt 0:00:30] KR-KR} Rc6 {[%emt 0:00:30]} 33. Kf3 {[%emt 0:00:30]} Kf6 {[%emt 0:00:30]} 34. Rd4 {[%emt 0:00:30]} Ke5 {[%emt 0:00:30]} 35. a4 {[%emt 0:00:30]} (35. Re4+ $18 Kd5 36. Re7) 35... bxa4 $16 {[%emt 0:00:30]} 36. Rxa4 {[%emt 0:00:30]} Rb6 {[%emt 0:00:00]} 37. Re4+ {[%emt 0:00:00]} Kd5 {[%emt 0:00:13]} (37... Kf6 $16) 38. Rd4+ {[%emt 0:01:46]} ({White should play} 38. Re2 $1 $18) 38... Kc5 $2 {[%emt 0:00:37]} (38... Ke6 $16 {was necessary.}) 39. b4+ $18 {[%emt 0:00:25]} Kc6 {[%emt 0:00:00]} 40. Rh4 {[%emt 0:01:12]} Rb7 {[%emt 0:00:18]} 41. Rh6 {[%emt 0:00:00]} Kd5 {[%emt 0:00:04]} 42. Ke3 {[%emt 0:00:23]} Kc4 {[%emt 0:01:09]} (42... Rg7 $142 43. g4 Rf7) 43. Rxd6 {[%emt 0:00:30]} Kxc3 {[%emt 0:00:02]} (43... Ra7 $142 44. Rc6+ Kb5 45. Rc5+ Kb6) 44. Rxa6 {[%emt 0:00:00]} Kxb4 {[%emt 0:00:55]} 45. Re6 {[%emt 0:00:40]} Kc5 {[%emt 0:00:44]} 46. Kf4 {[%emt 0:00:30]} Kd5 {[%emt 0:00:30]} 47. Re8 $2 {[%emt 0:00:30]} (47. Re5+ $18 Kd6 48. g4) 47... Rf7+ $1 $11 {[%emt 0:01:08]} 48. Kg3 {[%emt 0:00:38] Hoping for Kh4.} Rg7+ {[%emt 0:00:30]} 49. Kh2 {[%emt 0:00:00]} Kd6 {[%emt 0:01:59]} (49... h5 $1 $14) 50. h4 {[%emt 0:01:12]} Kd7 {[%emt 0:00:35]} 51. Re4 {[%emt 0:00:26]} h5 $2 {[%emt 0:00:22][%mdl 8192]} (51... Kd6 $16) 52. Re5 {[%emt 0:00:36]} Rh7 {[%emt 0:00:30]} 53. Kg3 {[%emt 0:00:09]} Kd6 {[%emt 0:00:06] [#]} 54. Re8 $2 {[%emt 0:00:41]} (54. Kf4 $1 $18 Rh8 55. Kf5) 54... Kd7 {[%emt 0:00:27]} 55. Rg8 {[%emt 0:00:24] Wards off Rg7+} Ke7 {[%emt 0:00:33]} 56. Kf4 {[%emt 0:00:26] Black must now prevent Kf5.} Kf6 {[%emt 0:00:41] [#]} 57. Rf8+ $2 {[%emt 0:00:54]} (57. g3 $1 $18) 57... Kg6 {[%emt 0:00:30] The position is equal.} 58. Rb8 {[%emt 0:01:31] White threatens Rb6+ and mate.} Rf7+ {[%emt 0:00:20]} 59. Kg3 {[%emt 0:00:11]} Rf6 {[%emt 0:00:44]} 60. Rb5 {[%emt 0:00:59]} Kh6 {[%emt 0:00:35]} 61. Rb4 {[%emt 0:00:30]} Kg6 {[%emt 0:00:05]} 62. Rf4 {[%emt 0:00:49] Threatening mate with Rxf6+.} Ra6 {[%emt 0:00:24]} 63. Re4 {[%emt 0:00:18]} Rf6 {[%emt 0:00:17]} 64. Re3 {[%emt 0:00:24]} Kh6 {[%emt 0:00:54]} 65. Rf3 {[%emt 0:00:41]} Ra6 {[%emt 0:00:12]} 66. Kh3 $1 {[%emt 0:00:31]} Kg6 {[%emt 0:00:20]} 67. Rg3+ {[%emt 0:01:05]} Kh6 {[%emt 0:00:30]} 68. Rg5 {[%emt 0:00:00]} Rf6 {[%emt 0:00:28]} 69. g3 {[%emt 0:00:18]} Rf2 {[%emt 0:00:25]} 70. Re5 {[%emt 0:00:21]} Rf6 {[%emt 0:00:21]} 71. Kg2 {[%emt 0:00:30]} Kg6 {[%emt 0:00:00]} 72. Rg5+ {[%emt 0:00:36]} Kh6 {[%emt 0:00:04]} 73. Kg1 {[%emt 0:00:38]} Rf3 {[%emt 0:00:42]} 74. Kg2 {[%emt 0:00:30]} Rf6 {[%emt 0:00:00]} 75. Rc5 $1 {[%emt 0:00:22]} Kg6 {[%emt 0:00:29]} 76. Rd5 {[%emt 0:00:30]} Kh6 {[%emt 0:00:30]} 77. Rg5 {[%emt 0:00:00]} Rf8 {[%emt 0:00:00]} 78. Ra5 {[%emt 0:00:00]} Rf6 {[%emt 0:00:18]} 79. Re5 {[%emt 0:00:06]} Kg6 {[%emt 0:00:00]} 80. Re4 {[%emt 0:00:27]} Kh6 {[%emt 0:00:09]} 81. Rf4 {[%emt 0:01:09]} Ra6 {[%emt 0:00:09]} 82. Rf3 {[%emt 0:00:57]} Ra2+ {[%emt 0:00:53]} 83. Rf2 {[%emt 0:00:30]} Ra6 {[%emt 0:00:00] Weighted Error Value: White=0.56/Black=0.33} 1/2-1/2

[Event "Turkish-ch Youth U18 Boys 2024"]
[Site "Belek Antalya"]
[Date "2024.01.22"]
[Round "2"]
[White "Kuru, Berkay Goktug"]
[Black "Aksu, Ata Anil"]
[Result "0-1"]
[ECO "E01"]
[WhiteElo "1280"]
[BlackElo "1728"]
[Annotator "NA RC COMBH"]
[PlyCount "76"]
[EventDate "2024.01.21"]
[EventType "swiss"]
[EventCountry "TUR"]
[SourceTitle "playchess.com"]
[Source "ChessBase"]
[SourceQuality "1"]
[TimeControl "5400+30"]

1. d4 {[%emt 0:03:00]} Nf6 {[%emt 0:01:00]} 2. c4 {[%emt 0:00:30]} e6 {[%emt 0:00:30]} 3. Nf3 {[%emt 0:00:30]} d5 {[%emt 0:00:30]} 4. g3 {[%emt 0:00:00]} c6 {[%emt 0:02:30]} 5. Bg2 {[%emt 0:00:00]} Bd6 {[%emt 0:00:30]} 6. Qc2 {[%emt 0:05:30]} Nbd7 {[%emt 0:03:30]} 7. O-O {[%emt 0:06:30]} h6 {[%emt 0:07:30]} 8. Nbd2 {[%emt 0:11:30]} O-O {[%emt 0:01:30]} 9. e4 {[%emt 0:06:30]} dxe4 {[%emt 0:02:30]} 10. Nxe4 {[%emt 0:03:30]} Nxe4 {[%emt 0:00:30]} 11. Qxe4 {[%emt 0:00:30]} Nf6 {[%emt 0:00:00]} 12. Qc2 {[%emt 0:00:30]} Qc7 {[%emt 0:00:00]} 13. b3 {[%emt 0:09:30]} Rd8 {[%emt 0:03:30]} 14. Bb2 {[%emt 0:00:30]} Be7 {[%emt 0:01:30]} 15. Rad1 {[%emt 0:07:30]} b6 {[%emt 0:01:30]} 16. Ne5 {[%emt 0:08:30]} Bb7 {[%emt 0:03:30]} 17. c5 {[%emt 0:04:30]} Rac8 {[%emt 0:03:30]} 18. b4 {[%emt 0:02:30]} Nd5 {[%emt 0:01:30]} 19. a3 {[%emt 0:02:30]} a5 {[%emt 0:00:30]} 20. Bxd5 {[%emt 0:01:30]} exd5 {[%emt 0:08:30]} 21. f4 {[%emt 0:01:30]} Re8 {[%emt 0:07:30]} 22. Qf5 {[%emt 0:04:30]} Bf6 {[%emt 0:05:30]} 23. Nd7 {[%emt 0:01:21]} Re6 {[%emt 0:00:30]} 24. Nxb6 {[%emt 0:01:46]} Rce8 {[%emt 0:00:30]} 25. Qb1 {[%emt 0:03:22]} axb4 {[%emt 0:00:30]} 26. axb4 {[%emt 0:00:00]} Ba6 {[%emt 0:03:30]} 27. Rfe1 {[%emt 0:00:25]} Be2 {[%emt 0:02:30]} 28. Rd2 {[%emt 0:02:04]} g5 {[%emt 0:04:30]} 29. Qc2 {[%emt 0:04:01]} Bg4 {[%emt 0:02:30]} 30. Rxe6 {[%emt 0:00:30]} Rxe6 {[%emt 0:00:30]} 31. f5 {[%emt 0:00:36]} Re4 {[%emt 0:02:30]} 32. Kg2 {[%emt 0:03:51]} Bxf5 {[%emt 0:02:30]} 33. Rf2 {[%emt 0:00:49]} Rf4 {[%emt 0:00:30]} 34. Qa4 {[%emt 0:00:24]} Bh3+ {[%emt 0:01:30]} 35. Kg1 {[%emt 0:01:25]} Qe7 {[%emt 0:00:30]} 36. Qd1 {[%emt 0:02:33]} Re4 {[%emt 0:00:00]} 37. Bc3 {[%emt 0:00:47]} Bxd4 {[%emt 0:00:00]} 38. Bxd4 {[%emt 0:01:13]} Re1+ {[%emt 0:00:30]} 0-1

[Event "Turkish-ch Youth U18 Boys 2024"]
[Site "Belek Antalya"]
[Date "2024.01.22"]
[Round "2"]
[White "Yildirim, Orhun Ali"]
[Black "Engin, Onur Cinar"]
[Result "0-1"]
[ECO "B15"]
[WhiteElo "1229"]
[BlackElo "2061"]
[Annotator "TA"]
[PlyCount "48"]
[EventDate "2024.01.21"]
[EventType "swiss"]
[EventCountry "TUR"]
[SourceTitle "playchess.com"]
[Source "ChessBase"]
[SourceQuality "1"]
[TimeControl "5400+30"]

{[%evp 16,48,16,0,46,-14,0,0,0,0,0,0,0,-27,-19,-99,-116,-213,-214,-375,-368,-514,-497,-507,-503,-446,-429,-402,-417,-484,-500,-1501,-1276,-1238,-1231]} 1. e4 {[%emt 0:01:00]} c6 {[%emt 0:01:00]} 2. d4 {[%emt 0:00:30]} d5 {[%emt 0:00:30]} 3. Nc3 {[%emt 0:00:00]} dxe4 {[%emt 0:00:30]} 4. Nxe4 {[%emt 0:00:00]} Nf6 {[%emt 0:00:00]} 5. Nxf6+ {[%emt 0:00:30]} exf6 {[%emt 0:00:00]} 6. Nf3 {[%emt 0:01:30]} Bd6 {[%emt 0:00:30]} 7. Bd3 {[%emt 0:01:30]} O-O {[%emt 0:00:30]} 8. O-O {[%emt 0:00:30]} Bg4 {[%emt 0:02:30]} 9. c3 {[%emt 0:04:30]} Re8 {[%emt 0:04:30]} (9... Na6 $11) 10. Bd2 {[%emt 0:04:30]} (10. h3 $14 Be6 11. Re1) 10... Bc7 {[%emt 0:07:30]} 11. h3 {[%emt 0:13:30]} Bh5 {[%emt 0:00:30] The position is equal.} 12. g4 {[%emt 0:05:30]} Bg6 {[%emt 0:00:30]} 13. Bxg6 {[%emt 0:00:30]} hxg6 {[%emt 0:00:00]} 14. Qc2 {[%emt 0:08:30]} Qd5 {[%emt 0:04:00]} (14... Nd7 {simplifies} 15. Rfe1 Nf8 16. Rxe8 Qxe8 17. Re1 Qd7) 15. Nh4 {[%emt 0:15:30]} (15. Kg2 $11 {keeps the balance.}) 15... g5 $17 {[%emt 0:16:30] Black is more active.} 16. Ng2 {[%emt 0:02:30]} (16. c4 $17 {was worth a try.} Qxd4 17. Nf3) 16... Qf3 $40 {[%emt 0:04:30][%cal Oe8e2][%mdl 128] [#] Hoping for ...Re2! Black is out for blood.} 17. Rfe1 {[%emt 0:00:30]} (17. Qb3 Qxh3 18. f4) 17... Nd7 {[%emt 0:04:30]} 18. Qf5 {[%emt 0:00:30]} Qxh3 {[%emt 0:00:30] ( -> ...Qh2+)} 19. f4 {[%emt 0:00:30]} (19. Qxd7 $2 {gets mated.} Qh2+ 20. Kf1 Qh1#) ({Inferior is} 19. Rxe8+ Rxe8 20. Nf4 (20. Qxd7 $2 Qh2+ 21. Kf1 Qh1#) 20... Bxf4 (20... gxf4 $2 21. Bxf4 Bxf4 22. Qxf4 $19)) 19... Nf8 {[%emt 0:02:30]} 20. Kf2 {[%emt 0:01:30]} gxf4 {[%emt 0:01:30]} 21. Bxf4 {[%emt 0:03:30] [#]} g6 $1 {[%emt 0:04:30]} 22. Qxf6 {[%emt 0:11:30]} Nh7 {[%emt 0:00:30] Black is clearly winning.} 23. Rh1 {[%emt 0:00:30]} (23. Qh4 $142 Qxh4+ 24. Nxh4 Bxf4 25. Rad1) 23... Re2+ {[%emt 0:00:30]} (23... Nxf6 $2 24. Rxh3 Bxf4 (24... Nxg4+ 25. Kf3 $17) 25. Nxf4 $19) 24. Kxe2 {[%emt 0:00:30]} Qxg2+ {[%emt 0:00:30] White did not feel at home in the position after the opening.   Weighted Error Value: White=1.07/Black=0.39.  Mistake:       	White=5     	---        Inaccurate:     	White=2     	---        OK:         	White=4     	Black=6      Best:        	White=1     	Black=2      Strong:       	---       	Black=1} 0-1

[Event "Turkish-ch Youth U18 Boys 2024"]
[Site "Belek Antalya"]
[Date "2024.01.22"]
[Round "3"]
[White "Anacak, Hasan Gunes"]
[Black "Ermemis, Kadir Efe"]
[Result "1-0"]
[ECO "B23"]
[WhiteElo "2102"]
[BlackElo "1725"]
[Annotator "NA RC"]
[PlyCount "43"]
[EventDate "2024.01.21"]
[EventType "swiss"]
[EventCountry "TUR"]
[SourceTitle "playchess.com"]
[Source "ChessBase"]
[SourceQuality "1"]
[TimeControl "5400+30"]

1. e4 {[%emt 0:01:00]} c5 {[%emt 0:01:00]} 2. Nc3 {[%emt 0:02:30]} Nc6 {[%emt 0:00:30]} 3. Bb5 {[%emt 0:00:30]} g6 {[%emt 0:02:30]} 4. Bxc6 {[%emt 0:00:30]} bxc6 {[%emt 0:01:30]} 5. f4 {[%emt 0:01:30]} Bg7 {[%emt 0:01:30]} 6. Nf3 {[%emt 0:01:30]} Nf6 {[%emt 0:02:30]} 7. d3 {[%emt 0:05:30]} d6 {[%emt 0:02:30]} 8. O-O {[%emt 0:07:30]} O-O {[%emt 0:01:30]} 9. Qe1 {[%emt 0:03:30]} Nd7 {[%emt 0:08:30]} 10. e5 {[%emt 0:04:30]} dxe5 {[%emt 0:05:30]} 11. f5 {[%emt 0:03:30]} f6 {[%emt 0:12:30]} 12. fxg6 {[%emt 0:08:30]} hxg6 {[%emt 0:02:30]} 13. Qe4 {[%emt 0:00:30]} Qe8 {[%emt 0:04:30]} 14. Qxc6 {[%emt 0:00:30]} Rb8 {[%emt 0:03:30]} 15. Nd5 {[%emt 0:17:30]} e6 {[%emt 0:09:30]} 16. Nc7 {[%emt 0:01:30]} Qe7 {[%emt 0:04:30]} 17. Qxe6+ {[%emt 0:00:30]} Qxe6 {[%emt 0:00:30]} 18. Nxe6 {[%emt 0:00:30]} Rf7 {[%emt 0:00:30]} 19. Nxg7 {[%emt 0:02:30]} Kxg7 {[%emt 0:00:30]} 20. b3 {[%emt 0:01:30]} Bb7 {[%emt 0:00:30]} 21. Bb2 {[%emt 0:02:30]} Nf8 {[%emt 0:01:30]} 22. Nxe5 {[%emt 0:00:30]} 1-0